Cogmind - Beta 9.6 @@@ ROGUE MODE // 2020.09.09 @ 21:17:11 Player: sentrybuster Result: Destroyed by G-47 Trooper with Particle Gun Performance ------------- Evolutions (2) 1000 Regions Visited (5) 1000 Robots Destroyed (23) 115 Value Destroyed (540) 540 Prototype IDs (5) 100 Alien Tech Used (0) 0 Bonus (0) 0 TOTAL SCORE: 2755 Bonus ------- None Cogmind --------- Core Integrity 0/550 Matter 137/300 Energy 202/300 System Corruption 0% Temperature Cool (38) Movement Flying (26) Location -8/Storage Parts ------- > --- POWER (2) -------- Nuclear Core Light Nuclear Core > --- PROPULSION (4) --- Improved VTOL Module Improved VTOL Module Improved VTOL Module Improved VTOL Module > --- UTILITY (3) ------ Weight Redist. System Improved Signal Interpreter Armor Integrity Analyzer > --- WEAPON (2) ------- (None) > --- INVENTORY (4) ---- Improved VTOL Module Light Regenerative Plating Peak State ------------ > --- POWER ------------ Nuclear Core Light Nuclear Core > --- PROPULSION ------- Improved VTOL Module Improved VTOL Module Improved VTOL Module Improved VTOL Module > --- UTILITY ---------- Weight Redist. System Improved Signal Interpreter Armor Integrity Analyzer > --- WEAPON ----------- (None) > --- INVENTORY -------- Improved VTOL Module Light Regenerative Plating [Rating: 29] Favorites ----------- Power Light Ion Engine Engine Light Ion Engine Power Core Light Nuclear Core Propulsion Aluminum Leg Leg Aluminum Leg Wheel Wheel Flight Unit Improved VTOL Module Utility Small Storage Unit Device Weight Redist. System Storage Small Storage Unit Processor Armor Integrity Analyzer Protection Light Regenerative Plating Weapon Light Assault Rifle Energy Gun Medium Laser Ballistic Gun Light Assault Rifle Launcher Mini Grenade Launcher Build | -11 -10 -10 -9 -8 -8 ------- Run | Scr Mat Min Mat Mat Sto Slots Evolved 4 | . . . 2 2 . Power 1 | . . . . 1 . Propulsion 2 | . . . 1 1 . Utility 1 | . . . 1 . . Weapon . | . . . . . . Parts Attached 49 | 6 1 12 15 2 13 Power 7 | 1 . 1 1 1 3 Engine 4 | 1 . . 1 1 1 Core 3 | . . 1 . . 2 Reactor . | . . . . . . Propulsion 16 | 2 . 3 5 1 5 Treads . | . . . . . . Leg 3 | . . 2 1 . . Wheel 2 | 2 . . . . . Hover . | . . . . . . Flight 11 | . . 1 4 1 5 Utility 8 | 1 1 . 4 . 2 Device 4 | . 1 . 2 . 1 Storage 1 | 1 . . . . . Processor 2 | . . . 2 . . Hackware . | . . . . . . Protection 1 | . . . . . 1 Artifact . | . . . . . . Weapon 18 | 2 . 8 5 . 3 Energy Gun 2 | 1 . 1 . . . Energy Cannon . | . . . . . . Ballistic Gun 13 | 1 . 5 5 . 2 Ballistic Cannon . | . . . . . . Launcher 3 | . . 2 . . 1 Special Weapon . | . . . . . . Impact Weapon . | . . . . . . Slashing Weapon . | . . . . . . Piercing Weapon . | . . . . . . Special Melee Weapon . | . . . . . . Unidentified Prototypes 3 | . . . . . 3 Parts Lost 23 | . . 11 1 2 9 Power 4 | . . 2 . . 2 Propulsion 8 | . . 3 1 1 3 Utility 1 | . . 1 . . . Weapon 10 | . . 5 . 1 4 Highest Loss Streak 6 | . . 6 1 3 6 Average Slot Usage (%) 82 | . 98 80 77 85 73 Engine 6 | . 14 1 3 18 6 Core 3 | . . 11 . . 1 Leg 9 | . . 24 11 . . Wheel 7 | . 28 2 . . . Flight 11 | . . . 17 24 31 Device 6 | . 13 1 3 9 8 Storage 7 | . 14 14 . . . Processor 8 | . . . 17 18 18 Energy Gun 4 | . 14 4 . . . Ballistic Gun 16 | . 14 19 22 15 7 Naked Turns . | . . . . . . Heaviest Build 14 | 10 11 14 11 14 14 Greatest Support 28 | 20 20 20 19 18 28 Greatest Overweight (x) 1 | . . . 1 . 1 Average Overweight (x) . | . . . . . . Largest Inventory Capacity 6 | 6 6 6 4 4 4 Average Capacity 5 | 5 6 5 4 4 4 Most Carried 5 | 4 5 5 4 3 4 Average Carried 3 | 2 4 3 3 2 2 Final Capacity 6 | 6 6 4 4 4 4 Final Carried 5 | 4 5 4 4 3 2 Class Distribution -------------------- 82% | Mutant 10% | Sprinter 6% | Scavenger-Mutant Dominant Class ---------------- Mutant | -10/Materials Mutant | -10/Mines Mutant | -9/Materials Scavenger-Mutant | -8/Materials Sprinter | -8/Storage Resources | -11 -10 -10 -9 -8 -8 ----------- Run | Scr Mat Min Mat Mat Sto Matter Collected 703 | 201 46 136 210 . 110 Remotely . | . . . . . . Salvage Created 665 | . 46 208 296 . 115 Parts 53 | . 5 20 23 . 5 Haulers Intercepted 2 | . . . 1 . 1 Recyclers Shooed 1 | . . 1 . . . Parts Field Recycled . | . . . . . . Retrieved Matter . | . . . . . . Parts Self-Destructed . | . . . . . . Prevented . | . . . . . . Kills | -11 -10 -10 -9 -8 -8 ------- Run | Scr Mat Min Mat Mat Sto Combat Hostiles Destroyed 19 | . 3 8 7 . 1 Guns 16 | . 3 6 6 . 1 AOE 3 | . . 2 1 . . Classes Destroyed 5 | . 1 2 2 . . Builder 2 | . . 2 . . . Hauler 2 | . . . 1 . 1 Swarmer 12 | . 3 6 3 . . Grunt 5 | . . 2 2 . 1 Sentry 2 | . . . 2 . . Best Kill Streak 5 | . 2 4 5 . 1 Combat Bots Only 5 | . 2 3 5 . 1 Max Kills in Single Turn 2 | . 1 2 2 . 1 Gunslinging 1 | . . . 1 . . Exploded 1 | . . 1 1 . . Melee . | . . . . . . Uniques/NPCs Destroyed . | . . . . . . Combat | -11 -10 -10 -9 -8 -8 -------- Run | Scr Mat Min Mat Mat Sto Damage Taken 2638 | . 78 1019 229 172 1140 Core 836 | . 9 230 39 37 521 Absorbed by Shields 42 | . . . . . 42 Core Remaining (%) 64 | 100 . 4 90 . . Volleys Fired 90 | . 17 48 14 4 7 Largest 2 | . 2 2 2 2 2 Hottest 70 | . 70 70 46 46 55 Shots Fired 161 | . 34 80 28 8 11 Gun 156 | . 34 76 28 8 10 Cannon . | . . . . . . Launcher 5 | . . 4 . . 1 Special . | . . . . . . Kinetic 119 | . 17 56 28 8 10 Thermal 37 | . 17 20 . . . Explosive 5 | . . 4 . . 1 Electromagnetic . | . . . . . . Robot Hit Streak 11 | . 2 8 5 11 6 Robot Miss Streak 8 | . 8 5 1 1 1 Penetration Max . | . . . . . . Secondary Targets 2 | . . 1 1 . . Max Gunslinging Chain 1 | . . 1 1 . . Shots Hit Robots 75 | . 11 35 14 7 8 Core Hits 41 | . 4 18 10 3 6 Critical Hits . | . . . . . . Critical Kills . | . . . . . . Critical Parts Destroyed . | . . . . . . Melee Attacks . | . . . . . . Impact . | . . . . . . Slashing . | . . . . . . Piercing . | . . . . . . Sneak Attacks . | . . . . . . Combat Hostiles . | . . . . . . Follow-up Attacks . | . . . . . . Damage Inflicted 1130 | . 95 568 220 100 147 Guns 819 | . 95 310 181 100 133 Cannons . | . . . . . . Explosions 307 | . . 258 39 . 10 Melee . | . . . . . . Ramming 4 | . . . . . 4 Kinetic 674 | . 9 251 181 100 133 Thermal 145 | . 86 59 . . . Explosive 307 | . . 258 39 . 10 Electromagnetic . | . . . . . . Impact . | . . . . . . Slashing . | . . . . . . Piercing . | . . . . . . Highest Corruption . | . . . . . . Average Corruption . | . . . . . . Corruption Purged . | . . . . . . Overload Shots . | . . . . . . Overflow Damage 20 | . . 9 . . 11 Projectiles . | . . . . . . Explosions 20 | . . 9 . . 11 Melee . | . . . . . . Knockbacks . | . . . . . . Impact . | . . . . . . Kinetic . | . . . . . . Secondary . | . . . . . . Self-Inflicted Damage 156 | . . 106 . . 50 Shots 4 | . . 3 . . 1 Rammed 1 | . . . . . 1 Targets Rammed 1 | . . . . . 1 Kicked . | . . . . . . Crushed . | . . . . . . Highest Temperature 256 | . 120 256 18 64 29 Average Temperature 49 | . 44 71 8 29 10 Received Heat Transfer 1056 | . . 360 87 90 519 Siege Activations . | . . . . . . Robots Corrupted . | . . . . . . Combat Hostiles . | . . . . . . Parts Fried . | . . . . . . Impact Corruptions . | . . . . . . Robots Melted . | . . . . . . Combat Hostiles . | . . . . . . Parts Melted . | . . . . . . Heat Transferred 420 | . 259 161 . . . Parts Sabotaged . | . . . . . . Parts Stolen . | . . . . . . Parts Stripped . | . . . . . . Power Chain Reactions . | . . . . . . Missiles Intercepted . | . . . . . . Alert | -11 -10 -10 -9 -8 -8 ------- Run | Scr Mat Min Mat Mat Sto Peak Influence 399 | . 157 286 399 178 183 Average Influence 127 | . 68 120 207 167 133 Maximum Alert Level 1 | . . 1 1 . . Low Security (%) 86 | 100 100 83 62 100 100 Level 1 13 | . . 16 37 . . Level 2 . | . . . . . . Level 3 . | . . . . . . Level 4 . | . . . . . . Level 5 . | . . . . . . High Security . | . . . . . . Max Security . | . . . . . . Squads Dispatched 7 | . . 1 2 . 4 Investigation 3 | . . 1 1 . 1 Extermination . | . . . . . . Reinforcement 4 | . . . 1 . 3 Assault . | . . . . . . Garrison . | . . . . . . Intercept . | . . . . . . Construction Impeded . | . . . . . . Haulers Reinforced . | . . . . . . Stealth | -11 -10 -10 -9 -8 -8 --------- Run | Scr Mat Min Mat Mat Sto Distress Signals 6 | . 2 . 2 . 2 Communications Jammed . | . . . . . . Distress Signals . | . . . . . . Times Spotted 90 | . 10 12 23 4 41 Peak Tracking Total 22 | . 6 3 15 4 22 Tactical Retreats 8 | . 1 1 2 . 4 Traps | -11 -10 -10 -9 -8 -8 ------- Run | Scr Mat Min Mat Mat Sto Traps Triggered 2 | . . . . . 2 Indirectly . | . . . . . . Trap Hack Attempts . | . . . . . . Triggered . | . . . . . . Disarmed . | . . . . . . Reprogrammed . | . . . . . . Reused . | . . . . . . Traps Extracted . | . . . . . . Installed . | . . . . . . Triggered . | . . . . . . Machines | -11 -10 -10 -9 -8 -8 ---------- Run | Scr Mat Min Mat Mat Sto Machines Disabled 6 | . . 3 2 . 1 Max in Single Turn 2 | . . 1 2 . 1 Machines Sabotaged 1 | . . 1 . . . Garrisons Compromised . | . . . . . . Overloaded Fab Kills . | . . . . . . Fab Network Shutdowns . | . . . . . . Hacking | -11 -10 -10 -9 -8 -8 --------- Run | Scr Mat Min Mat Mat Sto Machines Accessed 13 | . 3 1 2 . 7 Terminals 12 | . 2 1 2 . 7 Fabricators . | . . . . . . Repair Stations . | . . . . . . Recycling Units 1 | . 1 . . . . Scanalyzers . | . . . . . . Garrison Access . | . . . . . . Total Hacks 21 | . 4 1 4 . 12 Successful 11 | . 4 1 1 . 5 Failed 10 | . . . 3 . 7 Catastrophic 5 | . . . 2 . 3 Database Lockouts . | . . . . . . Manual 12 | . 4 1 2 . 5 Terminals 20 | . 3 1 4 . 12 Fabricators . | . . . . . . Repair Stations . | . . . . . . Recycling Units 1 | . 1 . . . . Scanalyzers . | . . . . . . Garrison Access . | . . . . . . Terminal Hacks 5 | . . . 1 . 4 Prototype ID Bank 1 | . . . . . 1 Open Door 3 | . . . . . 3 Emergency Access Points 1 | . . . 1 . . Fabricator Hacks . | . . . . . . Repair Station Hacks . | . . . . . . Recycling Unit Hacks . | . . . . . . Scanalyzer . | . . . . . . Garrison Access Hacks . | . . . . . . Unauthorized Hacks 6 | . 4 1 . . 1 Terminals 5 | . 3 1 . . 1 Track 1 | . 1 . . . . Botnet 3 | . 2 . . . 1 Sabotage 1 | . . 1 . . . Fabricators . | . . . . . . Repair Stations . | . . . . . . Recycling Units 1 | . 1 . . . . Monitor 1 | . 1 . . . . Scanalyzers . | . . . . . . Garrison Access . | . . . . . . Data Cores Recovered . | . . . . . . Used . | . . . . . . Hacking Detections 5 | . 1 . 1 . 3 Full Trace Events 3 | . . . 1 . 2 Feedback Events . | . . . . . . Feedback Blocked . | . . . . . . Robot Schematics Acquired . | . . . . . . Robots Built . | . . . . . . Matter . | . . . . . . Time . | . . . . . . Total Robot Build Rating . | . . . . . . Part Schematics Acquired . | . . . . . . Parts Built . | . . . . . . Matter . | . . . . . . Time . | . . . . . . Total Part Build Rating . | . . . . . . Parts Repaired . | . . . . . . Time . | . . . . . . Parts Recycled . | . . . . . . Recycled Matter . | . . . . . . Retrieved Matter . | . . . . . . Retrieved Components . | . . . . . . Parts Scanalyzed . | . . . . . . Part Schematics Acquired . | . . . . . . Parts Damaged . | . . . . . . Bothacking | -11 -10 -10 -9 -8 -8 ------------ Run | Scr Mat Min Mat Mat Sto Used RIF Installer . | . . . . . . Robots Hacked . | . . . . . . Non-combat . | . . . . . . Combat . | . . . . . . Robot Hacks Applied . | . . . . . . Relay Couplers Released . | . . . . . . Robots Rewired . | . . . . . . Allies Hacked . | . . . . . . Hacks Repelled . | . . . . . . Allies | -11 -10 -10 -9 -8 -8 -------- Run | Scr Mat Min Mat Mat Sto Total Allies . | . . . . . . Largest Group . | . . . . . . Highest-Rated Group . | . . . . . . Highest-Rated Ally . | . . . . . . Total Orders . | . . . . . . Ally Attacks . | . . . . . . Total Damage . | . . . . . . Kills . | . . . . . . Allies Corrupted . | . . . . . . Allies Melted . | . . . . . . Intel | -11 -10 -10 -9 -8 -8 ------- Run | Scr Mat Min Mat Mat Sto Robot Analysis Total . | . . . . . . Derelict Logs Recovered 2 | . . 2 . . . Drone Launches 16 | . . . . . 16 Drone Recoveries . | . . . . . . Exploration | -11 -10 -10 -9 -8 -8 ------------- Run | Scr Mat Min Mat Mat Sto Turns Passed 1248 | 43 286 355 282 33 249 Spaces Moved 1371 | 39 264 185 336 57 490 Core 117 | 2 . . . . 115 Treads . | . . . . . . Legs 171 | . . 171 . . . Wheels 307 | 37 264 6 . . . Hover . | . . . . . . Flight 776 | . . 8 336 57 375 Fastest Speed 26 | 50 80 50 34 34 26 Average Speed 60 | 78 80 115 55 35 35 Slowest Speed 140 | 80 80 120 140 37 117 Overloaded Moves . | . . . . . . Propulsion Burnouts . | . . . . . . Robots Hopped 33 | . . . 4 1 28 Cave-ins Triggered . | . . . . . . Exploration Rate (%) 40 | 4 55 54 40 8 83 Regions Visited 5 Branch Regions 2 Pre-discovered Areas . | . . . . . . Known Exits Taken 2 | . . . 1 1 . Unknown Exits Taken 3 | 1 1 1 . . . Scrap Searched . | . . . . . . Spaces Dug 5 | . . . . . 5 Terrain Destroyed 57 | . . 26 26 . 5 Melee . | . . . . . . Projectile . | . . . . . . AOE 57 | . . 26 26 . 5 Actions | -11 -10 -10 -9 -8 -8 --------- Run | Scr Mat Min Mat Mat Sto Total 1599 | 48 307 253 405 62 524 Wait 71 | . 25 5 25 . 16 Move 1303 | 38 263 184 327 54 437 Hop 30 | . . . 4 1 25 Pick Up 16 | 4 1 3 5 1 2 Fast Attach 31 | 6 1 5 11 . 8 Attach 12 | . . 4 2 2 4 Detach 4 | . . . 2 . 2 Swap 6 | . . 3 2 . 1 Drop 15 | . . 1 13 . 1 Fire 90 | . 17 48 14 4 7 Melee . | . . . . . . Ram 1 | . . . . . 1 Kick . | . . . . . . Crush . | . . . . . . Escape Stasis 11 | . . . . . 11 Rewire 1 | . . . . . 1 Trap . | . . . . . . Miscellaneous 8 | . . . . . 8 Route ------- -11/Scrapyard -10/Materials (discovered 2 exits: *Mat / *Min) -10/Mines -9/Materials -8/Materials -8/Storage History --------- Turn | Location | Event 18 | -11/Scrapyard | Discovered new exit (range 16) 44 | -11/Scrapyard | Entered Materials 234 | -10/Materials | Discovered new exit (range 9) 317 | -10/Materials | Build established: Mutant 324 | -10/Materials | Discovered new exit (range 8) 330 | -10/Materials | Entered Mines 379 | -10/Mines | Core integrity fell below 50% 405 | -10/Mines | Lost 6 parts (1p2n1u2w) 556 | -10/Mines | Learned Materials emergency access door positions 583 | -10/Mines | Learned location of 1 exit from Materials 612 | -10/Mines | Received a Rocket Launcher from a helpful Derelict 621 | -10/Mines | Discovered new exit (range 13) 671 | -10/Mines | Core integrity fell below 20% 685 | -10/Mines | Entered Materials 685 | -9/Materials | Evolved 2 slots: Propulsion x1, Utility x1 686 | -9/Materials | Identified exit to Materials 695 | -9/Materials | Lost 3 parts (1p1n1w) 967 | -9/Materials | Entered another Materials area 967 | -8/Materials | Evolved 2 slots: Power x1, Propulsion x1 982 | -8/Materials | Discovered new exit (range 12) 999 | -8/Materials | Identified exit to Storage 1000 | -8/Materials | Entered Storage 1024 | -8/Storage | Lost 3 parts (2n1w) 1041 | -8/Storage | Found Prototype Protection 1041 | -8/Storage | Identified Lgt. Regenerative Plating 1132 | -8/Storage | Core integrity fell below 50% 1172 | -8/Storage | Lost 6 parts (2p2n2w) 1212 | -8/Storage | Core integrity fell below 20% 1249 | -8/Storage | Destroyed by G-47 Trooper with Particle Gun Last Messages --------------- 01158_ G-47 Trooper destroyed. 01158_ K-01 Serf collects debris. 01209_ Imp. Assault Rifle destroyed. 01211_ Acquired Nuclear Core. 01219_ ALERT: Hostiles spotted, dispatching reinforcements to Terminal S010. 01221_ Connecting with Terminal... >>Open Sealed Heavy Doors opened. 01222_ Drone released from Drone Bay. 01235_ Drone destroyed. 01237_ Connecting with Terminal... >>Open Sealed Heavy Doors opened. 01239_ Drone destroyed. 01239_ G-47 Trooper destroyed. 01241_ Drone destroyed. 01242_ Acquired Lgt. Nuclear Core. 01244_ Acquired 53 matter. 01248_ Drone destroyed. Map ----- +----------------------------------------------------+ | ????????????????########## g #?# # #??? | | ????????????????# # Y #?# # ====#??? | | ????????????????# """ # rg#?# ##T######??? | | ????????????????# """ # #?# ####???????? | | ????????????????# """ # #?# #??????????? | | ????????????????# ! g #?# l#??????????? | | ????????????????# """ # #?# %#????????### | | ????????????????# """ # g #?# #????????# | | ????????????????# """ # #?# #????????# | | ????????????????# # #?#%g #####????# # | | ????????????????## ####### g #?#g [+ ##???# # | | ?????????????????#???????# n #?# # T#???# # | | ?????????????????????????# #?# n ### ##???# # | | ?????????????????????????# gY###n ##! !###?# # | | ?????????????????????????# n n n g ##! !##T##+# | | ?????????????????????????# nYg ##! !# | | ?????????????????????????# n Y g ##! !# | | ?????????????????????????# Yn####/#######""" | | ?????????????????????????# a ## % #""" | | ?????????????????????????# ## """ """ #""" | | ?????????????????????????# nn## """ """ #""" | | ?????????????????????????# ## """o"""n#""" | | ?????????????????????????# ## """ """ # | | ?????????????????????????#g ## """ """ # | | ??????????????######+#### # # | | ??????? k @ # # ] | | ??????? g ag ####T########### | | ??????? #??##??????????## | | ????????################# #???????????????? | | ????????????????????????#######???????????????? | | ??????????????????????????????????????????????? | | ??????????????????????????????????????????????? | | ??????????????????????????????????????????????? | | | | | | | | | | | | | | | | | | | | | | | | | | | | | | | | | | | +----------------------------------------------------+ Best States ------------- Heat Dissipation 31 Energy Generation 15 Energy Capacity 275 Matter Stores 300 Matter Capacity 300 Sight Range 16 Robot Scan Range 10 Terrain Scan Density 10 Additional Mass Support 6 Evasion (%) 64 Armor Integrity Analysis 33 Item Schematics ----------------- None Robot Schematics ------------------ None Fabricated ------------ Nothing Alien Tech Used ----------------- None Achievements -------------- None Challenges ------------ None Game ------ Seed TrackerScanFalx Manual? 0 Play Time 00:21:40 Cumulative 40.6 hours Start 2020.09.09 @ 20:43:31 End 2020.09.09 @ 21:17:11 Sessions 1 Manual Loads 0 Difficulty Rogue Special Mode None Game No. 72 Rogue 72 Adventurer 0 Explorer 0 Win Type - Total 0 Types 0/0/0/0/0/0/0 Lore% 33 Gallery% 44 Achievement% 30 Wizard Run 0 Options --------- ASCII 1 Keyboard 1 Movement Numpad Keybinds 0 Fullscreen 1 Font 18/X11 Map View 76x50 Tactical HUD 1 Map Filters NONE Filters NONE Steam 1 RUN: 6beaa9be-3103-4177-a11a-a3fd092b868b